bitfinex-derivatives/quotes_ETHF0:USTF0_20260223
["timestamp","ask_amount","ask_price","bid_price","bid_amount"]
[1771813910677,6.85568064,1867.1,1865.9,5.97784385]
[1771813910978,0.00472124,1867.3,1866.1,5.97784385]
[1771813911185,0.34794936,1867.3,1866.1,5.97784385]
[1771813911778,0.00472124,1867.3,1866.1,5.97784385]
[1771813912188,0.26421455,1867.3,1866.1,5.97784385]
[1771813913184,0.00472124,1867.3,1866.1,5.97784385]
[1771813913990,0.21396985,1867.3,1866.1,5.97784385]
[1771813914784,0.00472124,1867.3,1866.1,5.97784385]
[1771813916082,0.21034357,1868.1,1866.7,5.97784385]
[1771813916384,0.21034357,1868.3,1866.9,5.97784385]
[1771813916583,0.21132725,1868.3,1866.9,5.97784385]
[1771813916790,0.19870668,1868.2,1866.9,5.97784385]
[1771813917088,0.19870668,1868.0,1866.9,5.98362533]
[1771813917285,5.55120379,1868.2,1866.9,5.98362533]
[1771813917588,0.1828046,1868.7,1867.4,5.97784385]
[1771813917987,13.2,1868.8,1867.4,5.97784385]
[1771813918189,0.17057987,1868.7,1867.4,5.97784385]
[1771813918385,5.8165641,1868.7,1867.4,5.97784385]
[1771813918591,0.17057987,1868.6,1867.4,5.97784385]
[1771813919790,0.27530355,1868.7,1867.4,5.97784385]
[1771813920192,0.26983598,1868.5,1867.4,5.97784385]
[1771813920391,0.53750598,1868.5,1867.4,5.97784385]
[1771813920688,5.75701605,1868.4,1867.2,5.97784385]
[1771813920887,0.00546757,1868.7,1867.2,5.97784385]
[1771813921093,0.2638215,1868.7,1867.2,5.97784385]
[1771813921694,0.2638215,1868.7,1867.4,5.97784385]
[1771813921888,0.32751353,1868.5,1867.4,5.97784385]
[1771813922097,0.32751353,1868.4,1867.4,5.97784385]
[1771813922491,0.32751353,1868.2,1867.4,5.97784385]
[1771813924897,0.39903612,1868.5,1867.4,5.97784385]
[1771813925289,13.59903612,1868.4,1867.4,5.97784385]
[1771813925689,0.41146819,1868.6,1867.4,5.97784385]
[1771813926095,0.41146819,1868.6,1867.4,5.98784385]
[1771813926395,0.39947479,1868.4,1867.4,5.98784385]
[1771813927491,13.2,1868.5,1867.4,5.98784385]
[1771813927691,13.48652418,1868.5,1867.4,5.98784385]
[1771813927899,0.28652418,1868.4,1867.4,5.98784385]
[1771813928301,0.27246594,1868.2,1867.4,5.98784385]
[1771813929300,0.27067024,1868.4,1867.4,5.98784385]
[1771813930396,0.53835024,1868.4,1867.4,5.98784385]
[1771813930703,0.32183136,1868.2,1867.4,5.98784385]
[1771813931103,11.74248236,1868.3,1866.6,5.53901293]
[1771813931104,0.84556234,1867.4,1866.6,5.53901293]
[1771813931697,13.2,1867.3,1866.6,5.53901293]
[1771813932098,13.20451826,1867.3,1866.6,5.54499549]
[1771813933399,0.83273845,1867.2,1866.6,0.00598256]
[1771813933605,0.83273845,1867.2,1866.6,5.54499549]
[1771813933902,0.26787,1867.1,1866.2,5.53901293]
[1771813934101,0.82443846,1867.0,1866.2,5.53901293]
[1771813934893,6.08326086,1867.1,1866.2,5.54278891]
[1771813935093,0.807237,1867.2,1866.2,5.54278891]
[1771813936800,0.91875703,1867.1,1866.2,5.54278891]
[1771813937002,0.91875703,1867.0,1866.2,5.54278891]
[1771813938604,13.82717679,1867.3,1866.2,5.54278891]
[1771813938996,0.60461403,1867.2,1866.2,5.54278891]
[1771813939906,0.45338801,1867.0,1866.2,5.54278891]
[1771813940499,0.45338801,1866.8,1866.2,5.54278891]
[1771813940902,0.45338801,1866.8,1866.0,5.62904394]
[1771813941096,0.4370907,1866.6,1865.8,5.62904394]
[1771813942005,0.4370907,1866.6,1865.8,5.63574541]
[1771813942406,0.34065242,1866.4,1864.6,5.62904394]
[1771813942602,0.34065242,1866.2,1864.6,5.62904394]
[1771813943001,0.32473038,1866.0,1864.6,5.62904394]
[1771813943503,0.32473038,1866.0,1864.6,5.63463944]
[1771813944208,0.30292166,1865.8,1864.6,5.63463944]
[1771813944407,0.3075222,1865.8,1864.6,5.63463944]
[1771813944803,0.00460054,1865.8,1864.6,5.63463944]
[1771813946503,0.28947401,1865.8,1864.6,5.63463944]
[1771813946808,0.2694478,1865.6,1864.6,5.63463944]
[1771813947606,0.27404834,1865.8,1864.6,5.63463944]
[1771813948207,0.00460054,1865.8,1864.6,5.63463944]
[1771813949705,0.00460054,1865.8,1864.8,5.62904394]
[1771813950605,0.22460119,1866.2,1864.8,5.62904394]
[1771813951208,13.2,1866.1,1864.8,5.62904394]
[1771813951606,13.20661988,1866.1,1864.8,5.62904394]
[1771813951810,0.00661988,1866.1,1864.8,5.62904394]
[1771813952409,13.20661988,1866.1,1864.8,5.62904394]
[1771813953410,0.00661988,1866.1,1864.8,5.62904394]
[1771813957313,0.00661988,1866.1,1864.9,0.26819]
[1771813957506,0.00661988,1866.1,1865.0,5.62904394]
[1771813959009,9.99745189,1867.0,1865.0,5.62904394]
[1771813959208,5.52557736,1867.0,1865.6,5.57594724]
[1771813959609,5.52557736,1866.8,1865.6,5.57594724]
[1771813960005,7.6,1866.9,1865.6,5.57594724]
[1771813960209,0.00592848,1866.8,1865.8,5.57594724]
[1771813960710,5.53150584,1866.8,1865.8,5.57594724]
[1771813970411,5.79942584,1866.8,1865.3,5.57594724]
[1771813970617,5.52557736,1866.6,1865.3,5.57594724]
[1771813971017,5.52557736,1866.4,1865.3,5.57594724]
[1771813972918,5.52557736,1866.7,1865.3,5.57594724]
[1771813973115,5.52557736,1866.5,1865.3,5.57594724]
[1771813977021,5.52557736,1866.7,1865.3,5.57594724]
[1771813978323,5.52557736,1866.5,1865.3,5.57594724]
[1771813980222,5.52557736,1866.3,1865.3,5.57594724]
[1771813982120,5.52557736,1866.1,1865.1,5.57594724]
[1771813982326,5.52557736,1865.7,1864.9,5.57594724]
[1771813982824,13.12557736,1865.6,1864.9,5.57594724]
[1771813984327,7.6,1865.6,1864.9,5.57594724]
[1771813984527,5.52557736,1866.0,1864.9,5.58594724]
[1771813985030,7.6,1865.9,1864.9,5.58594724]
[1771813985527,5.52557736,1866.0,1864.9,5.58594724]
[1771813985928,13.12557736,1866.0,1864.9,5.58594724]
[1771813986327,5.52557736,1865.9,1864.9,5.58594724]
[1771813987029,5.52557736,1866.1,1864.9,5.58594724]
[1771813990928,5.40617676,1865.9,1864.9,5.58594724]
[1771813996941,5.22038976,1865.7,1864.9,0.01]
[1771813997538,5.22038976,1865.7,1864.9,5.35119377]
[1771813998435,5.22038976,1865.7,1864.9,0.01]
[1771813999334,0.26806,1865.8,1864.6,0.0055955]
[1771813999335,5.22038976,1865.5,1864.6,0.0055955]
[1771813999540,5.22038976,1865.3,1864.6,0.0055955]
[1771813999741,5.22573215,1865.3,1864.6,0.0055955]
[1771814000136,5.22038976,1865.1,1864.6,5.34678927]
[1771814000739,5.22573215,1865.3,1864.6,5.34678927]
[1771814001138,12.82573215,1865.3,1864.6,5.34678927]
[1771814001344,7.60534239,1865.3,1864.6,5.34678927]
[1771814001642,0.00534239,1865.3,1864.6,5.34678927]
[1771814005840,5.22038976,1865.6,1864.6,5.34678927]
[1771814006143,5.22038976,1865.7,1864.6,5.34678927]
[1771814006948,5.22563432,1865.7,1864.6,5.34678927]
[1771814007944,0.00524456,1865.7,1864.6,5.61500927]
[1771814008748,0.00524456,1865.7,1864.8,5.34119377]
[1771814012149,5.22038976,1866.8,1865.4,5.34119377]
[1771814013245,5.22659909,1866.8,1865.4,5.34119377]
[1771814013445,5.22659909,1866.8,1865.6,5.34119377]
[1771814013649,0.00620933,1866.8,1865.6,5.34119377]
[1771814014052,0.00620933,1866.8,1865.8,5.34119377]
[1771814017257,5.22038976,1867.2,1866.0,5.34119377]
[1771814017650,5.22038976,1867.4,1866.2,5.34119377]
[1771814018259,5.22654578,1867.4,1866.2,5.34553896]
[1771814018657,0.00615602,1867.4,1866.2,5.34553896]
[1771814020154,5.00160122,1867.4,1866.2,5.34553896]
[1771814021250,0.00615602,1867.4,1866.4,5.36911953]
[1771814021455,0.00615602,1867.4,1866.6,5.36911953]
[1771814021456,0.00037307,1867.4,1866.6,5.36911953]
[1771814021757,4.9954452,1868.0,1866.8,5.36911953]
[1771814022756,4.99977498,1868.0,1866.8,5.36911953]
[1771814032866,4.9954452,1867.8,1866.8,5.36911953]
[1771814034661,4.9954452,1867.6,1866.3,5.36911953]
[1771814035064,4.9954452,1867.6,1866.5,5.36911953]
[1771814037066,4.9954452,1867.2,1866.2,0.00434519]
[1771814037270,4.9954452,1867.2,1866.2,5.37346472]
[1771814037664,4.9954452,1867.0,1866.2,5.37346472]
[1771814040164,4.9954452,1867.0,1866.2,0.00434519]
[1771814040569,4.9954452,1867.0,1866.2,5.37346472]
[1771814044072,4.9954452,1867.0,1866.2,0.00434519]
[1771814044270,4.9954452,1867.0,1866.2,5.37346472]
[1771814044572,4.9954452,1867.0,1865.9,5.36911953]
[1771814045463,4.9954452,1866.8,1865.7,5.36911953]
[1771814045670,4.9954452,1866.6,1865.7,5.37372614]
[1771814045870,5.0015805,1866.6,1865.7,5.37372614]
[1771814049678,0.0061353,1866.6,1865.7,5.37372614]
[1771814051777,4.82421238,1866.6,1865.7,5.37372614]
[1771814053380,0.0061353,1866.6,1865.7,5.37372614]
[1771814055475,4.82421238,1866.6,1865.7,5.37372614]
[1771814055672,4.82421238,1866.6,1865.7,5.64178614]
[1771814057877,4.82421238,1866.6,1865.7,5.37372614]
[1771814058480,0.0061353,1866.6,1865.7,5.37372614]
[1771814059080,0.0061353,1866.6,1865.9,4.72331411]
[1771814062382,4.6514612,1867.8,1866.6,4.72331411]
[1771814062586,4.6514612,1867.6,1866.6,4.72331411]
[1771814063281,4.65532978,1867.6,1866.6,4.72331411]
[1771814066790,0.00386858,1867.6,1866.6,4.72331411]
[1771814066990,4.6419162,1867.6,1866.6,4.72331411]
[1771814068092,4.70124951,1867.4,1866.6,4.72331411]
[1771814070489,0.00386858,1867.6,1866.6,4.99124411]
[1771814070689,4.73114003,1867.6,1866.6,4.99124411]
[1771814071087,4.71702886,1867.4,1866.6,4.99124411]
[1771814071590,4.71702886,1867.4,1866.6,4.72331411]
[1771814076184,7.6,1867.5,1866.6,4.72331411]
[1771814076389,4.53697015,1867.5,1866.6,4.72331411]
[1771814077494,4.53697015,1867.5,1866.6,4.73331411]
[1771814081799,4.53697015,1867.5,1866.6,0.01]
[1771814081993,4.53697015,1867.5,1866.6,4.59814643]
[1771814083197,4.4757836,1867.3,1866.6,4.59814643]
[1771814083598,4.4757836,1867.5,1866.6,4.59814643]
[1771814087400,4.4757836,1867.5,1866.8,4.58814643]
[1771814091799,4.2659969,1867.6,1866.8,4.58814643]
[1771814097106,0.00386858,1867.6,1866.8,4.58814643]
[1771814099097,4.21900842,1867.6,1866.8,4.58814643]
[1771814104103,0.00386858,1867.6,1866.8,4.58814643]
[1771814104505,0.00386858,1867.6,1867.0,4.58814643]
[1771814108412,4.12791568,1867.6,1867.0,4.58814643]
[1771814109712,0.00386858,1867.6,1867.0,4.58814643]
[1771814110113,4.12818737,1867.6,1866.8,4.70682753]
[1771814116415,0.57748014,1867.5,1866.6,4.62145661]
[1771814116618,4.77022144,1867.4,1866.6,4.62145661]
[1771814116819,4.1927413,1867.4,1866.2,4.61145661]
[1771814117014,4.16969061,1867.2,1866.2,4.61145661]
[1771814120019,0.27167858,1867.6,1866.2,4.61145661]
[1771814120020,4.09436578,1867.3,1866.2,4.61145661]
[1771814122017,0.27166858,1867.6,1865.8,4.61145661]
[1771814122018,4.13490117,1866.9,1865.8,4.61145661]
[1771814122421,7.6,1866.8,1865.8,4.61145661]
[1771814123021,11.71567049,1866.8,1865.8,4.61145661]
[1771814123427,4.11567049,1866.8,1865.8,4.61145661]
[1771814125127,4.15000966,1867.3,1865.8,4.87950661]
[1771814127728,4.15000966,1867.3,1866.1,4.61145661]
[1771814129427,4.14657295,1867.1,1866.1,4.61145661]
[1771814131928,4.17248879,1866.9,1865.8,4.61145661]
[1771814132324,4.17248879,1866.7,1865.8,4.61145661]
[1771814132926,4.15454673,1866.5,1865.7,0.00460661]
[1771814133127,4.15454673,1866.5,1865.7,4.61606322]
[1771814133633,4.15454673,1866.5,1865.7,0.00460661]
[1771814134025,4.15454673,1866.5,1865.4,4.61145661]
[1771814134225,4.15927263,1866.3,1865.8,4.2215]
[1771814134527,4.15927263,1866.3,1865.1,1.38253508]
[1771814134528,4.15927263,1866.3,1865.2,4.61145661]
[1771814134832,13.72341923,1866.2,1865.2,4.61145661]
[1771814135028,13.72875146,1866.2,1865.2,4.61821487]
[1771814135221,7.60533223,1866.2,1865.2,4.61821487]
[1771814135425,6.12341923,1866.1,1865.1,4.61145661]
[1771814135922,0.00620631,1866.0,1865.1,4.61145661]
[1771814136626,0.00620631,1866.0,1865.1,4.61737916]
[1771814142636,0.25267975,1866.1,1865.1,4.61737916]
[1771814142930,6.04778432,1866.1,1865.1,4.61737916]
[1771814143126,0.23802832,1866.0,1865.1,4.61737916]
[1771814144136,0.22370342,1865.8,1865.1,4.61737916]
[1771814149938,0.23928352,1866.1,1865.1,4.61737916]
[1771814150236,0.23928352,1866.0,1865.1,4.61737916]
[1771814151835,0.08124218,1866.0,1865.1,4.61737916]
[1771814153636,5.72968035,1866.1,1865.1,4.61737916]
[1771814153637,0.06782026,1866.1,1865.1,4.61737916]
[1771814155733,7.60533223,1866.2,1865.1,4.61737916]
[1771814156331,7.60533223,1866.2,1865.3,4.61348313]
[1771814156730,17.03691,1866.9,1865.3,4.61348313]
[1771814156935,0.57391262,1866.8,1865.3,4.61348313]
[1771814157136,5.93457624,1866.8,1865.3,4.61348313]
[1771814157433,7.6,1866.7,1865.3,4.61348313]
[1771814157837,7.6046385,1866.7,1865.3,4.61348313]
[1771814158031,0.0046385,1866.7,1865.8,4.87328514]
[1771814158234,4.4657157,1867.7,1865.8,4.87328514]
[1771814158436,6.94938871,1867.5,1865.8,4.60524514]
[1771814158637,21.04266826,1867.4,1865.8,4.60524514]
[1771814158835,7.81634123,1867.3,1865.8,4.60524514]
[1771814159034,0.57462665,1867.2,1865.8,4.60524514]
[1771814159238,0.39197362,1867.2,1865.8,4.60524514]
[1771814159435,0.57486425,1867.1,1865.8,4.60524514]
[1771814159638,0.39197362,1867.2,1865.8,4.60524514]
[1771814159940,5.84491226,1867.0,1865.8,4.60524514]
[1771814160142,5.66081764,1867.1,1865.8,4.60524514]
[1771814160339,0.0069242,1867.2,1865.8,4.60524514]
[1771814160637,6.23615278,1867.1,1865.8,4.60524514]
[1771814160837,5.66081764,1867.1,1865.8,4.60524514]
[1771814161038,0.57533411,1867.0,1865.8,4.60524514]
[1771814161339,5.66081764,1867.1,1865.8,4.60524514]
[1771814161541,0.57544471,1867.0,1865.8,4.60524514]
[1771814161741,5.66081764,1867.1,1865.8,4.60524514]
[1771814161940,5.97688584,1866.9,1865.8,4.60524514]
[1771814162237,0.57543254,1866.8,1865.8,4.60524514]
[1771814162441,5.97688584,1866.9,1865.8,4.60524514]
[1771814162741,5.66081764,1866.7,1865.8,4.60524514]
[1771814162936,10.03442154,1867.2,1865.8,4.60524514]
[1771814163143,19.94083453,1867.1,1865.8,4.60524514]
[1771814163341,5.6436676,1866.7,1865.8,4.60524514]
[1771814163543,5.6436676,1867.0,1865.8,4.60524514]
[1771814163739,7.8291493,1866.9,1865.8,4.60524514]
[1771814163944,6.467,1867.1,1865.8,4.60524514]
[1771814163945,0.57544436,1866.8,1865.8,4.60524514]
[1771814164242,5.43712566,1866.8,1865.8,4.60524514]
[1771814164744,0.57532781,1866.7,1865.8,4.60524514]
[1771814164942,11.2005957,1867.1,1865.2,4.3963]
[1771814164943,0.57531482,1866.6,1865.7,4.51339205]
[1771814165244,6.03456596,1866.6,1865.7,4.51339205]
[1771814165434,7.6,1866.5,1865.7,4.51339205]
[1771814165836,6.03456596,1866.4,1865.7,4.51339205]
[1771814166038,7.6,1866.5,1865.7,4.51339205]
[1771814168639,0.00567438,1866.6,1865.7,4.51339205]
[1771814169048,12.03570584,1867.2,1865.7,4.51339205]
[1771814169244,15.42431171,1867.1,1865.7,4.51339205]
[1771814169444,6.47852419,1867.0,1865.7,4.51339205]
[1771814169746,5.90326379,1867.0,1865.7,4.51339205]
[1771814170645,8.08947983,1866.9,1865.7,4.51339205]
[1771814170846,0.26793,1866.7,1865.7,4.51339205]
[1771814171149,0.12836833,1866.6,1865.7,4.51339205]
[1771814174653,7.6,1866.5,1865.7,4.51339205]
[1771814177147,0.2747842,1867.2,1865.7,4.51339205]
[1771814177352,0.57548702,1867.1,1865.7,4.51339205]
[1771814177553,13.44612443,1867.0,1865.7,4.51339205]
[1771814177748,7.6,1867.0,1866.0,4.47684617]
[1771814179455,0.0069242,1867.2,1866.0,4.47684617]
[1771814180451,0.2747842,1867.2,1866.0,4.47684617]
[1771814183255,13.63901581,1867.1,1866.0,4.47684617]
[1771814183455,0.57588292,1867.0,1866.0,4.47684617]
[1771814183656,5.80918498,1867.1,1866.0,4.47684617]
[1771814183852,5.80918498,1866.9,1866.0,4.47684617]
[1771814184059,5.8285185,1867.1,1866.0,4.47684617]
[1771814184354,5.80918498,1866.9,1866.0,4.48684617]
[1771814184651,12.2955185,1867.1,1866.0,4.48684617]
[1771814184856,0.57632037,1867.0,1866.0,4.48684617]
[1771814185047,6.15948783,1866.9,1866.0,4.48684617]
[1771814185251,5.58316746,1867.0,1866.0,4.48684617]
[1771814185453,0.57637187,1866.9,1866.0,4.48684617]
[1771814185653,5.58316746,1867.0,1866.0,4.48684617]
[1771814186056,6.467,1867.1,1866.0,4.48684617]
[1771814186655,0.0069242,1867.2,1866.0,4.48684617]
[1771814187652,13.79785528,1867.1,1866.0,4.48684617]
[1771814187857,7.83502641,1867.0,1866.0,4.48684617]
[1771814188060,0.5762772,1866.9,1866.0,4.48684617]
[1771814188351,5.93208925,1866.9,1866.0,4.48684617]
[1771814188555,0.26787,1867.1,1866.0,4.48684617]
[1771814188752,0.0069242,1867.2,1866.0,4.48684617]
[1771814193362,5.74206676,1867.1,1866.0,4.48684617]
[1771814195260,0.57615599,1867.0,1866.0,4.48684617]
[1771814195460,5.74206676,1867.1,1866.0,4.48684617]
[1771814195661,0.57626557,1867.0,1866.0,4.48684617]
[1771814195855,5.74206676,1867.1,1866.0,4.48684617]
[1771814196062,0.0069242,1867.2,1866.0,4.48684617]
[1771814196063,5.89563672,1866.9,1866.0,4.48684617]
[1771814196361,5.74206676,1867.1,1866.0,4.48684617]
[1771814196563,5.89563672,1866.9,1866.0,4.48684617]
[1771814196859,0.57638202,1866.8,1866.0,4.48684617]
[1771814197165,5.89563672,1866.9,1866.0,4.48684617]
[1771814197363,0.57636627,1866.8,1866.0,4.48684617]
[1771814197662,7.6,1866.8,1866.0,4.48684617]
[1771814198062,14.08328496,1866.7,1865.8,4.28324649]
[1771814198262,6.26901929,1866.7,1865.8,4.28324649]
[1771814206964,0.57640076,1866.6,1865.2,4.1031245]
[1771814207170,6.26901929,1866.7,1865.2,4.1031245]
[1771814207370,5.63661419,1866.5,1865.2,4.1031245]
[1771814207667,5.88775848,1866.6,1865.2,4.1031245]
[1771814207868,0.26793,1866.7,1865.2,4.1031245]
[1771814208070,6.15818983,1866.6,1865.2,4.1031245]
[1771814208268,5.58186812,1866.6,1865.4,4.09795866]
[1771814208469,0.26793,1866.7,1865.4,4.09795866]
[1771814211876,7.6,1866.8,1865.4,4.09795866]
[1771814212178,5.77478079,1866.7,1865.4,4.09795866]
[1771814212671,7.6,1866.8,1865.4,4.09795866]
[1771814212871,0.5766739,1866.7,1865.4,4.09795866]
[1771814213071,7.6,1866.8,1865.8,4.13622967]
[1771814213272,0.2747942,1867.2,1865.8,4.13622967]
[1771814213577,6.7822832,1867.1,1865.8,4.13622967]
[1771814213774,8.17668792,1867.0,1865.8,4.13622967]
[1771814214074,7.6,1867.0,1865.8,4.13622967]
[1771814216676,7.6,1867.0,1866.0,4.14535654]
[1771814217074,0.0069242,1867.2,1866.2,4.14449868]
[1771814217272,4.5667383,1868.0,1866.2,4.14449868]
[1771814217478,7.81154623,1867.9,1866.2,4.14449868]
[1771814217678,5.94618317,1867.7,1866.4,4.14103658]
[1771814217874,0.57654172,1867.6,1866.4,4.14103658]
[1771814218078,5.94618317,1867.7,1866.4,4.14103658]
[1771814218274,5.952028,1867.7,1866.4,4.14103658]
[1771814221981,0.57578305,1867.6,1866.4,4.14103658]
[1771814222179,5.952028,1867.7,1866.4,4.14103658]
[1771814222380,5.69152031,1867.5,1866.4,4.14103658]
[1771814222582,12.21550203,1867.6,1866.4,4.14103658]
[1771814222771,0.57565859,1867.5,1866.4,4.14103658]
[1771814222972,6.467,1867.6,1866.4,4.14103658]
[1771814223282,6.24854356,1867.5,1866.4,4.14103658]
[1771814223482,5.67288498,1867.5,1866.4,4.14103658]
[1771814226679,5.67288498,1867.5,1866.4,4.15103658]
[1771814227778,6.467,1867.6,1866.4,4.15103658]
[1771814228378,5.77245777,1867.5,1866.4,4.15103658]
[1771814233781,6.467,1867.6,1866.4,4.15103658]
[1771814236484,0.00584483,1867.7,1866.4,4.15103658]
[1771814237782,0.00584483,1867.7,1866.6,4.00842792]
[1771814237982,0.00584483,1867.7,1866.6,4.01297373]
[1771814238584,8.29625175,1868.2,1866.8,4.00842792]
[1771814238784,0.84365067,1868.1,1866.8,4.00842792]
[1771814238984,8.17592067,1868.0,1866.8,4.00842792]
[1771814239184,7.6,1868.0,1866.8,4.00842792]
[1771814239485,7.60535015,1868.0,1866.8,4.00842792]
[1771814239687,6.46595405,1867.9,1866.8,4.00842792]
[1771814239984,7.60535015,1868.0,1866.8,4.00842792]
[1771814240181,5.79306695,1867.8,1866.8,4.00842792]
[1771814240384,7.60535015,1868.0,1866.8,4.00842792]
[1771814240385,5.79306695,1867.9,1866.8,4.00842792]
[1771814240582,7.60535015,1868.0,1866.8,4.00842792]
[1771814242283,6.54549709,1867.9,1866.8,4.00842792]
[1771814242489,5.96940519,1867.9,1866.8,4.00842792]
[1771814244186,0.57645051,1867.8,1866.8,4.00842792]
[1771814244390,5.96940519,1867.9,1866.8,4.00842792]
[1771814244592,0.57658266,1867.8,1866.8,4.00842792]
[1771814244785,5.96940519,1867.9,1866.8,4.00842792]
[1771814244786,0.57658266,1867.7,1866.8,4.00842792]
[1771814244986,5.96940519,1867.9,1866.8,4.00842792]
[1771814245191,0.57658715,1867.8,1866.8,4.00842792]
[1771814245485,5.96940519,1867.9,1866.8,4.00842792]
[1771814245890,6.68114486,1867.7,1866.6,0.00454581]
[1771814246191,0.26783,1867.4,1866.6,3.96364071]
[1771814246388,0.57676932,1867.3,1866.6,3.96364071]
[1771814246586,0.26783,1867.4,1866.6,3.96364071]
[1771814246786,0.57690924,1867.3,1866.6,3.96364071]
[1771814246980,0.26783,1867.4,1866.6,3.96364071]
[1771814247184,0.57690821,1867.3,1866.6,3.96364071]
[1771814247385,0.26783,1867.4,1866.6,3.96364071]
[1771814247584,0.57684452,1867.3,1866.6,3.96364071]
[1771814247785,0.26783,1867.4,1866.6,3.96364071]
[1771814247986,0.57684466,1867.3,1866.6,3.96364071]
[1771814248288,5.58583162,1867.6,1866.6,3.96364071]
[1771814248482,0.5768138,1867.5,1866.6,3.96364071]
[1771814248679,0.5768138,1867.4,1866.6,3.96364071]
[1771814248881,0.26776,1867.9,1866.6,3.96364071]
[1771814249080,7.81262258,1867.8,1866.6,3.96364071]
[1771814249292,0.57683293,1867.7,1866.6,3.96364071]
[1771814249492,6.04160049,1867.8,1866.6,3.96364071]
[1771814249686,0.5768329,1867.7,1866.6,3.96364071]
[1771814249886,6.04160049,1867.8,1866.6,3.96364071]
[1771814250091,0.57683298,1867.7,1866.6,3.96364071]
[1771814250293,6.04160049,1867.8,1866.6,3.96364071]
[1771814250497,0.57686278,1867.7,1866.6,3.96364071]
[1771814250788,6.19641443,1867.6,1866.6,3.96364071]
[1771814251088,5.61955508,1867.6,1866.6,3.96364071]
[1771814252590,0.26776,1867.9,1866.6,3.96364071]
[1771814252786,7.8128956,1867.8,1866.6,3.96364071]
[1771814252990,0.57686424,1867.7,1866.6,3.96364071]
[1771814253191,0.26776,1867.9,1866.6,3.96364071]
[1771814253391,7.81285891,1867.8,1866.6,3.96364071]
[1771814253590,0.57688833,1867.7,1866.6,3.96364071]
[1771814253890,0.26776,1867.9,1866.6,3.96364071]
[1771814254192,0.57688929,1867.8,1866.6,3.96364071]
[1771814254386,0.57688929,1867.7,1866.6,3.96364071]
[1771814254586,0.26776,1867.9,1866.6,3.96364071]
[1771814254792,7.81365656,1867.8,1866.6,3.96364071]
[1771814254987,0.57693142,1867.7,1866.6,3.96364071]
[1771814255193,0.57693142,1867.6,1866.6,3.96364071]
[1771814255393,5.55151016,1867.6,1866.6,3.96364071]
[1771814255690,0.26776,1867.9,1866.6,3.96364071]
[1771814255893,0.26778,1867.7,1866.6,3.96364071]
[1771814256090,0.57696702,1867.6,1866.6,3.96364071]
[1771814256294,0.26778,1867.7,1866.6,3.96364071]
[1771814256488,0.57702051,1867.6,1866.6,3.96364071]
[1771814256688,6.02471586,1867.6,1866.6,3.96364071]
[1771814258186,0.57707703,1867.5,1866.6,3.96364071]
[1771814258392,0.57707703,1867.4,1866.6,3.96364071]
[1771814258590,0.26781,1867.5,1866.6,3.96364071]
[1771814258789,0.26784,1867.3,1866.6,3.96364071]
[1771814258990,0.57705892,1867.2,1866.6,3.96364071]
[1771814259300,0.25757103,1867.2,1866.6,3.96364071]
[1771814261495,0.25757103,1867.2,1866.4,0.01]
[1771814261496,0.57686054,1867.1,1866.4,3.942576]
[1771814261699,0.2679,1866.9,1865.7,3.661661]
[1771814261898,0.26793,1866.7,1865.7,3.661661]
[1771814262093,0.57682983,1866.6,1865.7,3.661661]
[1771814262294,7.6,1866.5,1865.7,3.661661]
[1771814262496,7.60678013,1866.5,1865.7,3.66636719]
[1771814263698,7.60678013,1866.5,1865.8,8.0666089]
[1771814263902,7.60678013,1866.5,1865.9,3.6718089]
[1771814267508,0.26786,1867.2,1865.9,3.6718089]
[1771814267900,7.6,1867.1,1865.9,3.6718089]
[1771814268498,7.60617995,1867.1,1865.9,3.6718089]
[1771814269308,5.78086029,1867.0,1865.9,3.6718089]
[1771814269808,0.2679,1866.9,1865.9,3.6718089]
[1771814273009,5.71626798,1866.8,1865.9,3.6718089]
[1771814273411,7.6,1866.7,1865.9,3.6718089]
[1771814273610,3.14905792,1867.1,1866.1,1.41583522]
[1771814278510,3.14287797,1866.9,1866.1,1.41583522]
[1771814279713,3.14287797,1866.9,1865.8,0.63017698]
[1771814280008,3.14287797,1866.5,1865.1,3.17448814]
[1771814280208,3.14287797,1866.3,1865.1,3.17448814]
[1771814280611,3.14287797,1866.1,1865.1,3.17448814]
[1771814281012,3.14287797,1866.1,1865.1,3.18016723]
[1771814281614,3.14287797,1866.5,1865.1,3.18016723]
[1771814283312,3.14287797,1866.3,1865.1,3.18016723]
[1771814285510,3.14287797,1866.5,1865.3,3.17448814]
[1771814285816,3.14287797,1866.3,1865.3,3.17448814]
[1771814287018,3.41086797,1866.3,1865.3,3.17448814]
[1771814287228,3.14287797,1866.1,1865.3,3.17448814]
[1771814288912,3.55394136,1865.9,1865.1,3.85171365]
[1771814293021,3.55394136,1865.9,1865.1,0.00567909]
[1771814294324,3.55394136,1865.9,1865.1,3.85171365]
[1771814294521,3.55394136,1865.7,1865.1,3.85171365]
[1771814294724,3.56062275,1865.7,1865.1,3.85171365]
[1771814295127,3.56062275,1865.7,1864.7,3.84603456]
[1771814295525,3.55394136,1865.5,1863.8,3.84603456]
[1771814295723,3.55394136,1865.3,1863.8,3.84603456]
[1771814296126,3.55394136,1865.1,1863.8,3.85181511]
[1771814296832,3.86597946,1864.9,1864.0,3.56213381]
[1771814297931,3.86597946,1864.7,1864.0,3.56213381]
[1771814298322,3.86597946,1864.9,1864.0,3.56213381]
[1771814298727,3.86597946,1865.3,1864.0,3.57213381]
[1771814299128,3.86597946,1865.2,1864.0,3.57213381]
[1771814301641,3.86597946,1865.5,1864.0,3.84044381]
[1771814302744,3.86597946,1865.3,1864.0,3.57213381]
[1771814305047,3.86597946,1865.1,1864.0,3.57213381]
[1771814305546,4.13414946,1865.1,1864.0,0.01]
[1771814305744,3.86597946,1864.9,1864.0,0.01]
[1771814306140,3.86597946,1864.7,1864.0,0.01]
[1771814307443,3.86597946,1864.7,1864.0,3.57213381]
[1771814309549,3.86597946,1864.7,1864.0,0.01]
[1771814313047,10.46520946,1864.5,1863.9,3.00703]
[1771814313247,3.86597946,1864.1,1863.3,3.56213381]
[1771814313443,3.86597946,1864.1,1863.2,3.56213381]
[1771814313641,3.86597946,1863.9,1863.2,3.56213381]
[1771814313853,3.86597946,1863.9,1862.4,3.56213381]
[1771814314354,3.87224108,1863.9,1862.4,3.56672651]
[1771814314649,3.87224108,1863.9,1862.6,3.56213381]
[1771814321656,5.9214355,1863.8,1862.6,3.56213381]
[1771814321856,3.85143267,1863.7,1862.6,3.56213381]
[1771814322850,3.85143267,1863.5,1862.6,3.56213381]
[1771814323261,3.85143267,1863.5,1862.4,3.71866282]
[1771814323558,3.85143267,1863.3,1862.4,3.71866282]
[1771814324055,3.85143267,1863.3,1862.4,0.0045927]
[1771814324459,3.85143267,1863.1,1862.4,0.0045927]
[1771814324664,3.85143267,1863.1,1861.6,5.55787584]
[1771814324665,3.85143267,1863.1,1861.6,3.71407012]
[1771814325059,3.85143267,1862.9,1861.6,3.71407012]
[1771814325564,3.85143267,1862.9,1861.6,3.71953282]
[1771814326158,3.85143267,1862.9,1861.8,3.71407012]
[1771814326563,3.85143267,1863.4,1862.0,3.71407012]